[Event "Titled Tuesday Blitz June 6 Late 2023"]
[White "Oro, Faustino"]
[Black "Wizard_of_Odds"]
[WhiteFideId "20000197"]
[WhiteElo "1984"]
[BlackElo "2449"]
[Result "1-0"]
[Round "1"]
[TimeControl "180+2"]
[Date "2023.06.07"]
[WhiteClock "0:00:27"]
[BlackClock "0:00:22"]
[Board "62"]

1. Nf3 {[%clk 0:02:56]}  Nf6 {[%clk 0:02:58]} 2. g3 {[%clk 0:02:56]}  d5 {[%clk 0:02:58]} 3. Bg2 {[%clk 0:02:54]}  c6 {[%clk 0:02:57]} 4. O-O {[%clk 0:02:54]}  Bg4 {[%clk 0:02:57]} 5. d3 {[%clk 0:02:53]}  e6 {[%clk 0:02:56]} 6. Nbd2 {[%clk 0:02:53]}  h6 {[%clk 0:02:51]} 7. e4 {[%clk 0:02:51]}  Be7 {[%clk 0:02:48]} 8. c3 {[%clk 0:02:50]}  O-O {[%clk 0:02:46]} 9. h3 {[%clk 0:02:48]}  Bh5 {[%clk 0:02:46]} 10. Re1 {[%clk 0:02:48]}  Na6 {[%clk 0:02:42]} 11. Qc2 {[%clk 0:02:42]}  Bg6 {[%clk 0:02:38]} 12. Ne5 {[%clk 0:02:35]}  Bh7 {[%clk 0:02:38]} 13. Ndf3 {[%clk 0:02:15]}  dxe4 {[%clk 0:02:30]} 14. dxe4 {[%clk 0:02:14]}  Nc5 {[%clk 0:02:30]} 15. Nd4 {[%clk 0:02:13]}  Nfd7 {[%clk 0:02:26]} 16. Nc4 {[%clk 0:01:57]}  a5 {[%clk 0:02:14]} 17. Be3 {[%clk 0:01:48]}  Nf6 {[%clk 0:02:11]} 18. Bf4 {[%clk 0:01:38]}  Nh5 {[%clk 0:01:10]} 19. Bd2 {[%clk 0:01:18]}  Qc7 {[%clk 0:01:07]} 20. Qd1 {[%clk 0:01:08]}  Bg6 {[%clk 0:01:03]} 21. a4 {[%clk 0:00:50]}  Nd3 {[%clk 0:00:51]} 22. Re3 {[%clk 0:00:48]}  Ne5 {[%clk 0:00:47]} 23. Nxe5 {[%clk 0:00:42]}  Qxe5 {[%clk 0:00:48]} 24. Nf3 {[%clk 0:00:43]}  Qc7 {[%clk 0:00:44]} 25. Re1 {[%clk 0:00:39]}  Rfd8 {[%clk 0:00:42]} 26. Qb3 {[%clk 0:00:38]}  Nf6 {[%clk 0:00:39]} 27. Bf4 {[%clk 0:00:37]}  Qc8 {[%clk 0:00:34]} 28. Ne5 {[%clk 0:00:38]}  Bh7 {[%clk 0:00:33]} 29. Nc4 {[%clk 0:00:38]}  Ra6 {[%clk 0:00:29]} 30. Nb6 {[%clk 0:00:36]}  Rxb6 {[%clk 0:00:27]} 31. Qxb6 {[%clk 0:00:36]}  Qa8 {[%clk 0:00:26]} 32. Rad1 {[%clk 0:00:33]}  Nd7 {[%clk 0:00:22]} 33. Qc7 {[%clk 0:00:28]}  Nc5 {[%clk 0:00:22]} 34. Qxe7 {[%clk 0:00:27]} 1-0


[Site "https://www.chess.com"]

[Event "Titled Tuesday Blitz June 6 Late 2023"]
[White "Balla, Tamas-Kristof"]
[Black "Sokolovsky, Yahli"]
[WhiteFideId "1208497"]
[BlackFideId "2820242"]
[WhiteElo "2334"]
[BlackElo "2389"]
[Result "0-1"]
[Round "1"]
[TimeControl "180+2"]
[Date "2023.06.07"]
[WhiteClock "0:00:21"]
[BlackClock "0:00:27"]
[Board "63"]

1. e4 {[%clk 0:02:56]}  d6 {[%clk 0:03:00]} 2. d4 {[%clk 0:02:52]}  Nf6 {[%clk 0:03:01]} 3. Nc3 {[%clk 0:02:51]}  g6 {[%clk 0:03:01]} 4. f4 {[%clk 0:02:50]}  Bg7 {[%clk 0:03:01]} 5. Nf3 {[%clk 0:02:51]}  O-O {[%clk 0:03:02]} 6. Bd3 {[%clk 0:02:46]}  Nc6 {[%clk 0:03:02]} 7. e5 {[%clk 0:02:46]}  dxe5 {[%clk 0:03:02]} 8. fxe5 {[%clk 0:02:46]}  Nd5 {[%clk 0:02:55]} 9. Nxd5 {[%clk 0:02:43]}  Qxd5 {[%clk 0:02:56]} 10. c3 {[%clk 0:02:42]}  Bg4 {[%clk 0:02:52]} 11. O-O {[%clk 0:02:39]}  Rad8 {[%clk 0:02:50]} 12. Be3 {[%clk 0:02:33]}  Nxe5 {[%clk 0:02:45]} 13. Be2 {[%clk 0:02:08]}  Nxf3+ {[%clk 0:02:13]} 14. Bxf3 {[%clk 0:02:08]}  Bxf3 {[%clk 0:02:14]} 15. Rxf3 {[%clk 0:02:09]}  c5 {[%clk 0:02:06]} 16. Qc2 {[%clk 0:01:31]}  cxd4 {[%clk 0:02:05]} 17. Bxd4 {[%clk 0:01:31]}  Bxd4+ {[%clk 0:02:05]} 18. cxd4 {[%clk 0:01:32]}  Qxd4+ {[%clk 0:02:06]} 19. Kh1 {[%clk 0:01:32]}  Qd2 {[%clk 0:02:02]} 20. Qb3 {[%clk 0:01:31]}  Qd5 {[%clk 0:01:38]} 21. Qa3 {[%clk 0:01:15]}  e5 {[%clk 0:00:57]} 22. Qxa7 {[%clk 0:00:59]}  Ra8 {[%clk 0:00:57]} 23. Qf2 {[%clk 0:00:52]}  Rxa2 {[%clk 0:00:56]} 24. Rf1 {[%clk 0:00:52]}  Qd4 {[%clk 0:00:50]} 25. Qc2 {[%clk 0:00:37]}  Qxb2 {[%clk 0:00:42]} 26. Qxb2 {[%clk 0:00:23]}  Rxb2 {[%clk 0:00:43]} 27. h4 {[%clk 0:00:21]}  h5 {[%clk 0:00:42]} 28. Re3 {[%clk 0:00:20]}  Re8 {[%clk 0:00:42]} 29. Rf6 {[%clk 0:00:21]}  e4 {[%clk 0:00:38]} 30. Rf4 {[%clk 0:00:20]}  Rb4 {[%clk 0:00:38]} 31. Rf6 {[%clk 0:00:20]}  Re6 {[%clk 0:00:26]} 32. Rf4 {[%clk 0:00:20]}  b5 {[%clk 0:00:27]} 33. Kh2 {[%clk 0:00:20]}  Rc4 {[%clk 0:00:26]} 34. Kg3 {[%clk 0:00:20]}  b4 {[%clk 0:00:27]} 35. Rf2 {[%clk 0:00:21]}  Rc3 {[%clk 0:00:27]} 36. Kf4 {[%clk 0:00:21]}  Rf6+ {[%clk 0:00:27]} 0-1


[Site "https://www.chess.com"]

[Event "Titled Tuesday Blitz June 6 Late 2023"]
[White "Shapiro, David"]
[Black "Kashtanov, Ruslan"]
[WhiteFideId "24133523"]
[BlackFideId "4124871"]
[WhiteElo "2308"]
[BlackElo "2263"]
[Result "1-0"]
[Round "1"]
[TimeControl "180+2"]
[Date "2023.06.07"]
[WhiteClock "0:00:14"]
[BlackClock "0:00:01"]
[Board "64"]

1. e4 {[%clk 0:02:58]}  c5 {[%clk 0:02:59]} 2. Nf3 {[%clk 0:02:59]}  d6 {[%clk 0:02:59]} 3. d4 {[%clk 0:02:59]}  cxd4 {[%clk 0:02:59]} 4. Nxd4 {[%clk 0:03:00]}  Nf6 {[%clk 0:02:59]} 5. Nc3 {[%clk 0:03:01]}  a6 {[%clk 0:03:00]} 6. Be3 {[%clk 0:02:57]}  e6 {[%clk 0:02:57]} 7. g4 {[%clk 0:02:55]}  h6 {[%clk 0:02:53]} 8. Bg2 {[%clk 0:02:53]}  Nc6 {[%clk 0:02:40]} 9. h3 {[%clk 0:02:47]}  Bd7 {[%clk 0:02:35]} 10. Qe2 {[%clk 0:02:43]}  b5 {[%clk 0:02:34]} 11. O-O-O {[%clk 0:02:36]}  Be7 {[%clk 0:02:19]} 12. h4 {[%clk 0:02:28]}  h5 {[%clk 0:02:12]} 13. gxh5 {[%clk 0:02:22]}  Rc8 {[%clk 0:02:05]} 14. Nxc6 {[%clk 0:02:07]}  Bxc6 {[%clk 0:01:56]} 15. Bg5 {[%clk 0:01:27]}  b4 {[%clk 0:01:49]} 16. Nb1 {[%clk 0:01:13]}  Qa5 {[%clk 0:01:31]} 17. f4 {[%clk 0:00:30]}  Qxa2 {[%clk 0:01:24]} 18. e5 {[%clk 0:00:30]}  Nd5 {[%clk 0:01:24]} 19. Bxe7 {[%clk 0:00:27]}  Kxe7 {[%clk 0:00:32]} 20. exd6+ {[%clk 0:00:28]}  Kd7 {[%clk 0:00:33]} 21. Bxd5 {[%clk 0:00:16]}  Bxd5 {[%clk 0:00:32]} 22. Qe5 {[%clk 0:00:15]}  f6 {[%clk 0:00:21]} 23. Qd4 {[%clk 0:00:15]}  Rc6 {[%clk 0:00:12]} 24. Qxb4 {[%clk 0:00:14]}  Rhc8 {[%clk 0:00:09]} 25. Rh2 {[%clk 0:00:14]}  Qc4 {[%clk 0:00:06]} 26. Qxc4 {[%clk 0:00:14]}  Rxc4 {[%clk 0:00:06]} 27. Nc3 {[%clk 0:00:15]}  Bc6 {[%clk 0:00:04]} 28. Rg1 {[%clk 0:00:13]}  Rg8 {[%clk 0:00:03]} 29. h6 {[%clk 0:00:13]}  g6 {[%clk 0:00:01]} 30. h5 {[%clk 0:00:14]} 1-0


[Site "https://www.chess.com"]

[Event "Titled Tuesday Blitz June 6 Late 2023"]
[White "Shapiro, Viktor"]
[Black "Kushko, Dmitriy"]
[WhiteFideId "4175700"]
[BlackFideId "14162261"]
[WhiteElo "2212"]
[BlackElo "2230"]
[Result "1-0"]
[Round "1"]
[TimeControl "180+2"]
[Date "2023.06.07"]
[WhiteClock "0:00:19"]
[BlackClock "0:00:05"]
[Board "65"]

1. Nf3 {[%clk 0:03:00]}  g6 {[%clk 0:02:59]} 2. g3 {[%clk 0:03:00]}  Bg7 {[%clk 0:03:00]} 3. Bg2 {[%clk 0:03:01]}  Nf6 {[%clk 0:03:00]} 4. O-O {[%clk 0:03:02]}  O-O {[%clk 0:03:00]} 5. c4 {[%clk 0:03:02]}  d6 {[%clk 0:03:00]} 6. d3 {[%clk 0:03:03]}  Nc6 {[%clk 0:02:59]} 7. Nc3 {[%clk 0:03:03]}  e5 {[%clk 0:03:00]} 8. Rb1 {[%clk 0:03:04]}  a5 {[%clk 0:02:58]} 9. a3 {[%clk 0:03:04]}  Re8 {[%clk 0:02:58]} 10. b4 {[%clk 0:03:05]}  axb4 {[%clk 0:02:59]} 11. axb4 {[%clk 0:03:06]}  Nd4 {[%clk 0:03:00]} 12. e3 {[%clk 0:03:04]}  Nxf3+ {[%clk 0:02:58]} 13. Bxf3 {[%clk 0:03:05]}  h5 {[%clk 0:02:47]} 14. b5 {[%clk 0:02:59]}  Bg4 {[%clk 0:02:42]} 15. e4 {[%clk 0:02:43]}  Qd7 {[%clk 0:02:23]} 16. Bg5 {[%clk 0:02:38]}  Nh7 {[%clk 0:02:23]} 17. Be3 {[%clk 0:02:36]}  Nf8 {[%clk 0:02:21]} 18. Nd5 {[%clk 0:02:35]}  Ra3 {[%clk 0:01:59]} 19. Bxg4 {[%clk 0:02:35]}  hxg4 {[%clk 0:01:57]} 20. Rb3 {[%clk 0:02:27]}  Rea8 {[%clk 0:01:40]} 21. Rxa3 {[%clk 0:02:12]}  Rxa3 {[%clk 0:01:41]} 22. Qe2 {[%clk 0:02:11]}  c6 {[%clk 0:01:35]} 23. bxc6 {[%clk 0:02:10]}  bxc6 {[%clk 0:01:36]} 24. Nb6 {[%clk 0:02:08]}  Qe6 {[%clk 0:01:33]} 25. Rb1 {[%clk 0:02:05]}  f5 {[%clk 0:01:29]} 26. c5 {[%clk 0:01:55]}  d5 {[%clk 0:01:19]} 27. Qc2 {[%clk 0:01:48]}  d4 {[%clk 0:00:39]} 28. Bc1 {[%clk 0:01:45]}  Ra2 {[%clk 0:00:39]} 29. Qd1 {[%clk 0:01:38]}  Qf7 {[%clk 0:00:20]} 30. exf5 {[%clk 0:01:26]}  gxf5 {[%clk 0:00:15]} 31. Nc4 {[%clk 0:01:19]}  Nd7 {[%clk 0:00:14]} 32. Nd6 {[%clk 0:01:17]}  Qe6 {[%clk 0:00:13]} 33. Rb7 {[%clk 0:01:04]}  Nxc5 {[%clk 0:00:13]} 34. Rb8+ {[%clk 0:01:04]}  Kh7 {[%clk 0:00:14]} 35. Ne8 {[%clk 0:01:02]}  Bh8 {[%clk 0:00:09]} 36. Bb2 {[%clk 0:00:53]}  e4 {[%clk 0:00:06]} 37. dxe4 {[%clk 0:00:52]}  Qxe4 {[%clk 0:00:06]} 38. Nd6 {[%clk 0:00:49]}  Qd5 {[%clk 0:00:06]} 39. Rxh8+ {[%clk 0:00:47]}  Kxh8 {[%clk 0:00:05]} 40. Qxd4+ {[%clk 0:00:47]}  Qxd4 {[%clk 0:00:04]} 41. Bxd4+ {[%clk 0:00:48]}  Kh7 {[%clk 0:00:04]} 42. Bxc5 {[%clk 0:00:49]}  Kg6 {[%clk 0:00:04]} 43. Be3 {[%clk 0:00:47]}  Rc2 {[%clk 0:00:03]} 44. Kf1 {[%clk 0:00:46]}  Kf6 {[%clk 0:00:03]} 45. Ke1 {[%clk 0:00:42]}  Ke5 {[%clk 0:00:03]} 46. Bf4+ {[%clk 0:00:43]}  Kd5 {[%clk 0:00:03]} 47. Nxf5 {[%clk 0:00:42]}  Ra2 {[%clk 0:00:03]} 48. Nh6 {[%clk 0:00:41]}  c5 {[%clk 0:00:02]} 49. Nxg4 {[%clk 0:00:41]}  c4 {[%clk 0:00:03]} 50. h4 {[%clk 0:00:40]}  c3 {[%clk 0:00:03]} 51. h5 {[%clk 0:00:39]}  Kc4 {[%clk 0:00:02]} 52. h6 {[%clk 0:00:39]}  Kd3 {[%clk 0:00:02]} 53. Kf1 {[%clk 0:00:39]}  Ra1+ {[%clk 0:00:02]} 54. Kg2 {[%clk 0:00:39]}  Ra7 {[%clk 0:00:03]} 55. h7 {[%clk 0:00:37]}  Rxh7 {[%clk 0:00:02]} 56. Ne5+ {[%clk 0:00:36]}  Ke4 {[%clk 0:00:02]} 57. Ng4 {[%clk 0:00:33]}  Rc7 {[%clk 0:00:01]} 58. f3+ {[%clk 0:00:31]}  Kd3 {[%clk 0:00:01]} 59. Nf2+ {[%clk 0:00:31]}  Ke2 {[%clk 0:00:01]} 60. Ne4 {[%clk 0:00:23]}  c2 {[%clk 0:00:02]} 61. g4 {[%clk 0:00:22]}  Rc6 {[%clk 0:00:02]} 62. Kg3 {[%clk 0:00:21]}  c1=Q {[%clk 0:00:03]} 63. Bxc1 {[%clk 0:00:21]}  Rxc1 {[%clk 0:00:04]} 64. Ng5 {[%clk 0:00:19]}  Ke3 {[%clk 0:00:05]} 65. f4 {[%clk 0:00:19]}  Rg1+ {[%clk 0:00:05]} 66. Kh4 {[%clk 0:00:18]}  Kxf4 {[%clk 0:00:05]} 67. Nh3+ {[%clk 0:00:19]} 1-0


[Site "https://www.chess.com"]

[Event "Titled Tuesday Blitz June 6 Late 2023"]
[White "Papasimakopoulos, Alexandros"]
[Black "szachmistrz2500"]
[WhiteFideId "4244125"]
[WhiteElo "2359"]
[BlackElo "2444"]
[Result "1/2-1/2"]
[Round "1"]
[TimeControl "180+2"]
[Date "2023.06.07"]
[WhiteClock "0:00:13"]
[BlackClock "0:01:42"]
[Board "66"]

1. d4 {[%clk 0:02:29]}  d5 {[%clk 0:02:59]} 2. c4 {[%clk 0:02:27]}  e6 {[%clk 0:02:59]} 3. Nc3 {[%clk 0:02:26]}  Nf6 {[%clk 0:02:59]} 4. cxd5 {[%clk 0:02:25]}  exd5 {[%clk 0:02:58]} 5. Bg5 {[%clk 0:02:26]}  c6 {[%clk 0:02:58]} 6. Qc2 {[%clk 0:02:25]}  Bd6 {[%clk 0:02:57]} 7. e3 {[%clk 0:02:25]}  Bg4 {[%clk 0:02:53]} 8. Bd3 {[%clk 0:02:25]}  Bh5 {[%clk 0:02:54]} 9. Nge2 {[%clk 0:02:24]}  Bg6 {[%clk 0:02:54]} 10. Nf4 {[%clk 0:02:24]}  Bxd3 {[%clk 0:02:52]} 11. Nxd3 {[%clk 0:02:25]}  Nbd7 {[%clk 0:02:52]} 12. Bf4 {[%clk 0:02:22]}  Qe7 {[%clk 0:02:47]} 13. h3 {[%clk 0:02:15]}  Ne4 {[%clk 0:02:40]} 14. Nxe4 {[%clk 0:02:09]}  dxe4 {[%clk 0:02:37]} 15. Bxd6 {[%clk 0:02:09]}  Qxd6 {[%clk 0:02:37]} 16. Nf4 {[%clk 0:02:04]}  Nf6 {[%clk 0:02:37]} 17. O-O {[%clk 0:01:57]}  O-O {[%clk 0:02:36]} 18. Rfc1 {[%clk 0:01:56]}  Rae8 {[%clk 0:02:33]} 19. Rab1 {[%clk 0:01:55]}  Nd5 {[%clk 0:02:33]} 20. Nxd5 {[%clk 0:01:53]}  Qxd5 {[%clk 0:02:33]} 21. Qc4 {[%clk 0:01:52]}  Qg5 {[%clk 0:02:30]} 22. Qc5 {[%clk 0:01:50]}  f5 {[%clk 0:02:09]} 23. Qxa7 {[%clk 0:01:17]}  f4 {[%clk 0:02:09]} 24. exf4 {[%clk 0:01:17]}  Qxf4 {[%clk 0:02:09]} 25. Rf1 {[%clk 0:01:13]}  Rf7 {[%clk 0:02:07]} 26. Qc5 {[%clk 0:01:07]}  h6 {[%clk 0:02:02]} 27. Rbe1 {[%clk 0:00:59]}  Qd2 {[%clk 0:01:59]} 28. Qc3 {[%clk 0:00:58]}  Qf4 {[%clk 0:01:58]} 29. Qe3 {[%clk 0:00:49]}  Qf5 {[%clk 0:01:58]} 30. f3 {[%clk 0:00:47]}  Rfe7 {[%clk 0:01:56]} 31. fxe4 {[%clk 0:00:38]}  Qxe4 {[%clk 0:01:56]} 32. Qb3+ {[%clk 0:00:37]}  Qd5 {[%clk 0:01:55]} 33. Qxd5+ {[%clk 0:00:37]}  cxd5 {[%clk 0:01:54]} 34. Rxe7 {[%clk 0:00:30]}  Rxe7 {[%clk 0:01:55]} 35. Rf5 {[%clk 0:00:16]}  Re2 {[%clk 0:01:55]} 36. b3 {[%clk 0:00:15]}  Rxa2 {[%clk 0:01:55]} 37. Rxd5 {[%clk 0:00:16]}  Rd2 {[%clk 0:01:53]} 38. Rb5 {[%clk 0:00:16]}  Rxd4 {[%clk 0:01:52]} 39. Rxb7 {[%clk 0:00:17]}  Rd2 {[%clk 0:01:52]} 40. Kh2 {[%clk 0:00:17]}  Kh7 {[%clk 0:01:52]} 41. Kg3 {[%clk 0:00:17]}  Kg6 {[%clk 0:01:52]} 42. b4 {[%clk 0:00:18]}  Rb2 {[%clk 0:01:51]} 43. b5 {[%clk 0:00:18]}  Rb4 {[%clk 0:01:52]} 44. Rb8 {[%clk 0:00:18]}  h5 {[%clk 0:01:52]} 45. b6 {[%clk 0:00:18]}  Kg5 {[%clk 0:01:52]} 46. Kf3 {[%clk 0:00:18]}  g6 {[%clk 0:01:52]} 47. g3 {[%clk 0:00:18]}  h4 {[%clk 0:01:50]} 48. g4 {[%clk 0:00:14]}  Rb3+ {[%clk 0:01:50]} 49. Kf2 {[%clk 0:00:14]}  Rxh3 {[%clk 0:01:49]} 50. b7 {[%clk 0:00:14]}  Rb3 {[%clk 0:01:49]} 51. Kg1 {[%clk 0:00:12]}  Kxg4 {[%clk 0:01:46]} 52. Rg8 {[%clk 0:00:12]}  Rb1+ {[%clk 0:01:46]} 53. Kg2 {[%clk 0:00:12]}  Rb2+ {[%clk 0:01:46]} 54. Kg1 {[%clk 0:00:12]}  Rb1+ {[%clk 0:01:46]} 55. Kg2 {[%clk 0:00:12]}  Rxb7 {[%clk 0:01:46]} 56. Rxg6+ {[%clk 0:00:12]}  Kh5 {[%clk 0:01:47]} 57. Rg8 {[%clk 0:00:12]}  Rb2+ {[%clk 0:01:47]} 58. Kh3 {[%clk 0:00:12]}  Rb3+ {[%clk 0:01:47]} 59. Kh2 {[%clk 0:00:13]}  Rb4 {[%clk 0:01:48]} 60. Kh3 {[%clk 0:00:12]}  Rb3+ {[%clk 0:01:47]} 61. Kh2 {[%clk 0:00:12]}  Kh6 {[%clk 0:01:47]} 62. Ra8 {[%clk 0:00:11]}  Kg5 {[%clk 0:01:46]} 63. Ra4 {[%clk 0:00:11]}  Rb2+ {[%clk 0:01:45]} 64. Kh3 {[%clk 0:00:11]}  Rb3+ {[%clk 0:01:45]} 65. Kh2 {[%clk 0:00:11]}  Rb2+ {[%clk 0:01:45]} 66. Kh3 {[%clk 0:00:12]}  Rb3+ {[%clk 0:01:45]} 67. Kg2 {[%clk 0:00:12]}  Rb2+ {[%clk 0:01:42]} 68. Kh3 {[%clk 0:00:13]} 1/2-1/2


[Site "https://www.chess.com"]

[Event "Titled Tuesday Blitz June 6 Late 2023"]
[White "Jovic, Stanoje"]
[Black "Prohaszka, Peter"]
[WhiteFideId "905020"]
[BlackFideId "726265"]
[WhiteElo "2236"]
[BlackElo "2626"]
[Result "0-1"]
[Round "1"]
[TimeControl "180+2"]
[Date "2023.06.07"]
[WhiteClock "0:00:01"]
[BlackClock "0:00:03"]
[Board "67"]

1. c4 {[%clk 0:03:00]}  c6 {[%clk 0:02:58]} 2. e4 {[%clk 0:02:59]}  d5 {[%clk 0:02:59]} 3. exd5 {[%clk 0:03:00]}  cxd5 {[%clk 0:03:00]} 4. cxd5 {[%clk 0:03:00]}  Nf6 {[%clk 0:03:01]} 5. Qa4+ {[%clk 0:02:59]}  Nbd7 {[%clk 0:03:01]} 6. Bc4 {[%clk 0:02:59]}  g6 {[%clk 0:03:00]} 7. d3 {[%clk 0:02:59]}  Bg7 {[%clk 0:02:59]} 8. Nc3 {[%clk 0:02:59]}  O-O {[%clk 0:02:59]} 9. Nf3 {[%clk 0:02:59]}  a6 {[%clk 0:02:59]} 10. Qa3 {[%clk 0:03:00]}  b6 {[%clk 0:02:55]} 11. O-O {[%clk 0:02:59]}  Bb7 {[%clk 0:02:56]} 12. Re1 {[%clk 0:03:00]}  Re8 {[%clk 0:02:56]} 13. Bg5 {[%clk 0:02:59]}  b5 {[%clk 0:02:54]} 14. Bb3 {[%clk 0:02:59]}  Rc8 {[%clk 0:02:47]} 15. Qb4 {[%clk 0:02:53]}  Nc5 {[%clk 0:02:43]} 16. Rad1 {[%clk 0:02:36]}  Nxb3 {[%clk 0:01:41]} 17. axb3 {[%clk 0:02:33]}  Nxd5 {[%clk 0:01:41]} 18. Nxd5 {[%clk 0:02:30]}  Qxd5 {[%clk 0:01:39]} 19. Rxe7 {[%clk 0:02:19]}  Rxe7 {[%clk 0:01:23]} 20. Qxe7 {[%clk 0:02:19]}  Qxb3 {[%clk 0:01:20]} 21. Re1 {[%clk 0:02:07]}  Bc6 {[%clk 0:00:50]} 22. h4 {[%clk 0:01:02]}  h6 {[%clk 0:00:46]} 23. Be3 {[%clk 0:00:42]}  Bxf3 {[%clk 0:00:29]} 24. gxf3 {[%clk 0:00:38]}  Qxd3 {[%clk 0:00:28]} 25. h5 {[%clk 0:00:33]}  g5 {[%clk 0:00:20]} 26. Qb7 {[%clk 0:00:30]}  Rc4 {[%clk 0:00:12]} 27. Qxa6 {[%clk 0:00:27]}  Qf5 {[%clk 0:00:08]} 28. Qa8+ {[%clk 0:00:12]}  Kh7 {[%clk 0:00:08]} 29. Rd1 {[%clk 0:00:09]}  Rh4 {[%clk 0:00:07]} 30. Kf1 {[%clk 0:00:06]}  Rh1+ {[%clk 0:00:06]} 31. Ke2 {[%clk 0:00:07]}  Qc2+ {[%clk 0:00:05]} 32. Rd2 {[%clk 0:00:05]}  Qc4+ {[%clk 0:00:05]} 33. Rd3 {[%clk 0:00:05]}  Rb1 {[%clk 0:00:03]} 34. Qe4+ {[%clk 0:00:03]}  Qxe4 {[%clk 0:00:03]} 35. fxe4 {[%clk 0:00:03]}  Rxb2+ {[%clk 0:00:04]} 36. Kf3 {[%clk 0:00:04]}  Be5 {[%clk 0:00:03]} 37. Rd7 {[%clk 0:00:04]}  Kg7 {[%clk 0:00:04]} 38. Rb7 {[%clk 0:00:03]}  b4 {[%clk 0:00:04]} 39. Rb5 {[%clk 0:00:03]}  Bc3 {[%clk 0:00:04]} 40. e5 {[%clk 0:00:01]}  Rb1 {[%clk 0:00:03]} 0-1


[Site "https://www.chess.com"]

[Event "Titled Tuesday Blitz June 6 Late 2023"]
[White "Yanchenko, Roman"]
[Black "Garcia Cuenca, Victor"]
[WhiteFideId "4137329"]
[BlackFideId "2250829"]
[WhiteElo "2491"]
[BlackElo "2329"]
[Result "1-0"]
[Round "1"]
[TimeControl "180+2"]
[Date "2023.06.07"]
[WhiteClock "0:00:18"]
[BlackClock "0:00:07"]
[Board "68"]

1. d4 {[%clk 0:02:58]}  Nf6 {[%clk 0:02:58]} 2. Nf3 {[%clk 0:02:58]}  c5 {[%clk 0:02:58]} 3. e3 {[%clk 0:02:57]}  e6 {[%clk 0:02:56]} 4. Be2 {[%clk 0:02:57]}  b6 {[%clk 0:02:56]} 5. O-O {[%clk 0:02:57]}  Bb7 {[%clk 0:02:57]} 6. b3 {[%clk 0:02:57]}  Be7 {[%clk 0:02:57]} 7. Bb2 {[%clk 0:02:57]}  O-O {[%clk 0:02:57]} 8. dxc5 {[%clk 0:02:57]}  bxc5 {[%clk 0:02:54]} 9. c4 {[%clk 0:02:57]}  d5 {[%clk 0:02:49]} 10. Nc3 {[%clk 0:02:57]}  Nbd7 {[%clk 0:02:47]} 11. Qc2 {[%clk 0:02:56]}  a6 {[%clk 0:02:42]} 12. Rfd1 {[%clk 0:02:55]}  Qc7 {[%clk 0:02:42]} 13. Rac1 {[%clk 0:02:54]}  Rac8 {[%clk 0:02:41]} 14. Qb1 {[%clk 0:02:54]}  Rfd8 {[%clk 0:02:40]} 15. h3 {[%clk 0:02:52]}  h6 {[%clk 0:02:39]} 16. Qa1 {[%clk 0:02:49]}  Qb8 {[%clk 0:02:39]} 17. Na4 {[%clk 0:02:41]}  Bf8 {[%clk 0:02:31]} 18. cxd5 {[%clk 0:02:35]}  exd5 {[%clk 0:02:28]} 19. Ne5 {[%clk 0:02:35]}  Ne4 {[%clk 0:02:16]} 20. Nxd7 {[%clk 0:02:33]}  Rxd7 {[%clk 0:02:14]} 21. Nb6 {[%clk 0:02:32]}  Rcd8 {[%clk 0:02:12]} 22. Nxd7 {[%clk 0:02:31]}  Rxd7 {[%clk 0:02:13]} 23. Be5 {[%clk 0:02:29]}  Qe8 {[%clk 0:02:08]} 24. Bf3 {[%clk 0:02:26]}  Ng5 {[%clk 0:02:00]} 25. Bg4 {[%clk 0:02:26]}  Rd8 {[%clk 0:01:39]} 26. Bf4 {[%clk 0:02:26]}  Ne4 {[%clk 0:01:38]} 27. Qe5 {[%clk 0:02:25]}  Qb5 {[%clk 0:01:32]} 28. Bf5 {[%clk 0:02:12]}  Nf6 {[%clk 0:01:28]} 29. Qc7 {[%clk 0:02:05]}  Re8 {[%clk 0:01:25]} 30. Bd6 {[%clk 0:02:04]}  Bxd6 {[%clk 0:01:15]} 31. Qxd6 {[%clk 0:02:05]}  c4 {[%clk 0:01:16]} 32. Rb1 {[%clk 0:01:27]}  d4 {[%clk 0:01:09]} 33. Qf4 {[%clk 0:01:11]}  dxe3 {[%clk 0:01:00]} 34. bxc4 {[%clk 0:01:09]}  Qc6 {[%clk 0:01:00]} 35. f3 {[%clk 0:01:10]}  Nh5 {[%clk 0:00:48]} 36. Qg4 {[%clk 0:00:57]}  Nf6 {[%clk 0:00:47]} 37. Qd4 {[%clk 0:00:57]}  g6 {[%clk 0:00:38]} 38. Rb6 {[%clk 0:00:54]}  e2 {[%clk 0:00:34]} 39. Re1 {[%clk 0:00:54]}  Qc7 {[%clk 0:00:28]} 40. Bxg6 {[%clk 0:00:52]}  Nd7 {[%clk 0:00:22]} 41. Rd6 {[%clk 0:00:38]}  Ne5 {[%clk 0:00:18]} 42. Bh5 {[%clk 0:00:32]}  Nxc4 {[%clk 0:00:15]} 43. Rxh6 {[%clk 0:00:32]}  Qe5 {[%clk 0:00:12]} 44. Qxe5 {[%clk 0:00:23]}  Rxe5 {[%clk 0:00:12]} 45. f4 {[%clk 0:00:24]}  Re4 {[%clk 0:00:06]} 46. Rxe2 {[%clk 0:00:24]}  Rxf4 {[%clk 0:00:07]} 47. Rf2 {[%clk 0:00:18]} 1-0


[Site "https://www.chess.com"]